Cogmind - Beta 12 @@@ ROGUE MODE // 2023.12.17 @ 11:09:28 Player: Dosh Result: Self-destructed Performance ------------- Evolutions (5) 2500 Regions Visited (21) 4200 Robots Destroyed (269) 1345 Value Destroyed (9753) 9753 Prototype IDs (44) 880 Alien Tech Used (0) 0 Bonus (2226) 2226 TOTAL SCORE: 20904 Bonus ------- High Alert Combat Kills 828 Follower Combat Kills 719 Network Hubs Disabled 200 Aligned with FarCom 300 Met Data Miner 300 MAIN.C Attacked Warlord 500 Friendly Fire -621 Cogmind --------- Core Integrity 285/1000 Matter 300/300 Energy 100/100 System Corruption 0% Temperature Cool (12) Movement Core (1500) Ox29 Location -5/Warlord Parts ------- > --- POWER (2) -------- (None) > --- PROPULSION (4) --- (None) > --- UTILITY (8) ------ Huge Storage Unit Improved Target Analyzer Core Analyzer Makeshift Armor Plating Improved Hacking Suite > --- WEAPON (3) ------- Backup Laser III Heavy Hammer > --- INVENTORY (25) --- Improved Treads Improved Heat Sink Improved Coolant Injector High-capacity Matter Pod (78) Structural Scanner Armor Integrity Analyzer Phase Shifter Hacking Suite Improved System Shield Improved Corruption Screen Trap Reconfigurator Heavy Laser Gauss Rifle Gauss Rifle Heavy Shock Bomb Launcher Peak State ------------ > --- POWER ------------ Angular Momentum Engine Light Antimatter Reactor > --- PROPULSION ------- Improved Medium Treads Centrium Heavy Treads > --- UTILITY ---------- Huge Storage Unit Improved Heavy Armor Plating EM Disruption Field Improved Hacking Suite Improved Hacking Suite Improved Hacking Suite Improved System Shield > --- WEAPON ----------- Hypervelocity Gauss Rifle Heavy Flak Cannon Bore Cannon > --- INVENTORY -------- Nuclear Core Light Treads High-capacity Matter Pod Structural Scanner Improved Target Analyzer Kinecellerator Phase Shifter Hardened Light Armor Plating Improved Medium Armor Plating Improved Medium Armor Plating Improved Medium Armor Plating Hacking Suite Improved System Shield Trap Reconfigurator Cooled Particle Cannon Cooled Particle Cannon Heavy Plasma Cannon Heavy Rocket Launcher Heavy Hammer [Rating: 93] Favorites ----------- Power Cooled Deuterium Engine Engine Cooled Deuterium Engine Power Core Nuclear Core Reactor Light Antimatter Reactor Propulsion Light Treads Treads Light Treads Leg Aluminum Leg Wheel Wheel Hover Unit Backup Propulsion III Utility Hacking Suite Device Improved Cooling System Storage Huge Storage Unit Processor Core Analyzer Hackware Hacking Suite Protection Medium Armor Plating Weapon Cooled Particle Cannon Energy Gun Improved Medium Laser Energy Cannon Cooled Particle Cannon Ballistic Gun Shotgun Ballistic Cannon Flak Cannon Launcher Heavy Rocket Launcher Impact Weapon Heavy Hammer Build | -11 -10 -10 -9 -9 -9 -8 -8 -7 -7 -7 -7 -6 -6 -6 -6 -6 -6 -5 -5 -5 -5 ------- Run | Jun Mat Min Mat Min Exi Min Mat Fac Low Low Dat Pro Fac Ext Cet Arc Hub Fac Upp Upp War Slots Evolved 10 | . . . 2 . . . 2 2 . . . . 2 . . . . 2 . . . Power 1 | . . . . . . . . . . . . . 1 . . . . . . . . Propulsion 2 | . . . . . . . 1 1 . . . . . . . . . . . . . Utility 6 | . . . 2 . . . 1 1 . . . . 1 . . . . 1 . . . Weapon 1 | . . . . . . . . . . . . . . . . . . 1 . . . Parts Attached 201 | 6 10 1 9 1 . . 27 43 7 9 . 4 1 8 12 4 5 25 15 12 2 Power 23 | 1 . 1 . 1 . . 2 4 . 1 . 1 . 2 . . 1 4 4 1 . Engine 14 | 1 . 1 . 1 . . . 4 . 1 . . . 1 . . 1 . 4 . . Core 8 | . . . . . . . 2 . . . . 1 . 1 . . . 3 . 1 . Reactor 1 | . . . . . . . . . . . . . . . . . . 1 . . . Propulsion 38 | 2 3 . 3 . . . 7 10 . 3 . . . 4 1 . . . 2 3 . Treads 31 | 2 2 . 3 . . . 7 10 . . . . . 4 1 . . . . 2 . Leg 3 | . 1 . . . . . . . . 1 . . . . . . . . 1 . . Wheel 3 | . . . . . . . . . . 2 . . . . . . . . . 1 . Hover 1 | . . . . . . . . . . . . . . . . . . . 1 . . Flight . | . . . . . . . . . . . . . . . . . . . . . . Utility 71 | 1 3 . 3 . . . 9 16 2 3 . 1 1 2 3 2 4 10 6 4 1 Device 33 | . 2 . 1 . . . 4 8 2 2 . 1 1 . 2 1 3 2 3 1 . Storage 5 | 1 1 . . . . . . 2 . . . . . . . . . . . 1 . Processor 3 | . . . . . . . . . . 1 . . . . . . . 1 . 1 . Hackware 10 | . . . . . . . 3 3 . . . . . . . . . 4 . . . Protection 20 | . . . 2 . . . 2 3 . . . . . 2 1 1 1 3 3 1 1 Artifact . | . . . . . . . . . . . . . . . . . . . . . . Weapon 69 | 2 4 . 3 . . . 9 13 5 2 . 2 . . 8 2 . 11 3 4 1 Energy Gun 6 | 2 . . 1 . . . 2 . . . . . . . . . . . 1 . . Energy Cannon 14 | . . . . . . . . 3 . . . 2 . . 4 1 . 2 1 1 . Ballistic Gun 7 | . 2 . 1 . . . 1 . . . . . . . . . . 1 1 . 1 Ballistic Cannon 25 | . 1 . . . . . 4 7 2 1 . . . . 1 1 . 6 . 2 . Launcher 15 | . 1 . 1 . . . 2 2 3 1 . . . . 3 . . 2 . . . Special Weapon . | . . . . . . . . . . . . . . . . . . . . . . Impact Weapon 2 | . . . . . . . . 1 . . . . . . . . . . . 1 . Slashing Weapon . | . . . . . . . . . . . . . . . . . . . . . . Piercing Weapon . | . . . . . . . . . . . . . . . . . . . . . . Special Melee Weapon . | . . . . . . . . . . . . . . . . . . . . . . Unidentified Prototypes 8 | . . . 1 . . . 3 3 . . . . . . 1 . . . . . . Corrupted Parts 4 | . . . . . . . . . . 1 . 1 . . . . . . . 2 . System Corruption 17 | . . . . . . . . . . 10 . 3 . . . . . . . 4 . Parts Lost 88 | . 3 1 . . . . 7 13 8 . . 1 . 2 2 . 6 13 11 15 6 Power 14 | . . 1 . . . . 1 1 1 . . . . . . . 1 2 2 3 2 Propulsion 22 | . 1 . . . . . . 7 3 . . 1 . 1 . . 1 1 1 4 2 Utility 31 | . . . . . . . 4 5 2 . . . . 1 2 . 4 5 4 3 1 Weapon 21 | . 2 . . . . . 2 . 2 . . . . . . . . 5 4 5 1 Highest Loss Streak 7 | . 2 1 . . . . 4 2 4 . . 1 . 2 2 . 5 5 7 5 6 To Critical Strikes 1 | . . . . . . . 1 . . . . . . . . . . . . . . Average Slot Usage (%) 85 | . 98 98 95 100 100 100 92 94 62 84 76 89 80 89 93 93 88 77 76 65 70 Engine 6 | . 14 12 11 11 11 11 3 6 5 7 7 7 . 3 6 6 9 2 6 2 9 Core 1 | . . . . . . . 5 . . . . . 6 6 6 6 2 3 1 . . Treads 15 | . 27 28 22 22 22 22 26 29 8 . . . . 13 21 20 19 9 . 2 . Leg 1 | . . . . . . . . . . 7 7 7 6 3 . . . . 4 . . Device 10 | . 13 14 20 22 22 22 8 8 3 16 15 17 26 19 12 18 15 5 10 6 . Storage 7 | . 14 14 11 11 11 11 9 7 7 7 7 7 6 6 6 6 6 5 5 6 5 Processor 2 | . . . . . . . . . . 5 7 4 . . . . . . 5 8 11 Hackware 13 | . . . . . . . 12 18 21 15 15 15 13 13 13 13 13 21 17 13 10 Protection 5 | . . . 9 11 11 11 8 5 . . . . . 4 13 7 6 5 4 3 4 Energy Gun 2 | . 6 . 9 11 11 11 3 . . . . . . . . . . . 3 . 4 Energy Cannon 3 | . . . . . . . . 4 . . . 15 13 13 7 . 6 1 1 2 . Ballistic Gun 3 | . 20 28 12 11 11 11 4 . . . . . . . . . . 3 4 2 3 Ballistic Cannon 5 | . . . . . . . 8 9 13 11 . . . . 4 12 6 10 3 4 . Naked Turns . | . . . . . . . . . . . . . . . . . . . . . . Heaviest Build 146 | 13 52 52 58 58 58 58 77 146 114 113 110 112 108 130 142 142 142 144 133 131 97 Greatest Support 140 | 40 40 40 40 40 40 40 62 98 68 20 20 20 10 100 140 140 140 110 80 28 23 Greatest Overweight (x) 32 | . 1 1 1 1 1 1 1 2 32 11 5 11 10 11 1 1 1 1 30 28 28 Average Overweight (x) 2 | . . 1 1 1 1 1 . 1 5 6 4 6 10 4 . . . 1 8 6 5 Largest Inventory Capacity 25 | 8 20 20 20 20 20 20 20 25 25 25 25 25 25 25 25 25 25 25 25 25 25 Average Capacity 23 | 7 10 20 20 20 20 20 20 24 25 25 25 25 25 25 25 25 25 25 25 25 25 Most Carried 25 | 2 8 10 20 20 20 20 20 25 22 19 19 18 16 25 25 25 25 25 16 13 15 Average Carried 18 | . 6 8 16 19 19 20 19 23 21 16 18 17 16 21 18 21 24 19 14 11 13 Final Capacity 25 | 8 20 20 20 20 20 20 20 25 25 25 25 25 25 25 25 25 25 25 25 25 25 Final Carried 25 | 2 8 10 20 20 20 20 20 22 20 17 19 17 16 25 17 24 23 16 13 11 15 Class Distribution -------------------- 38% | Hacker-Mutant 28% | Scavenger-Mutant 11% | Hacker-Tank 8% | Mutant 4% | Hacker-Skirmisher 4% | Commander-Mutant Dominant Class ---------------- Mutant | -10/Materials Mutant | -10/Mines Scavenger-Mutant | -9/Materials Scavenger-Mutant | -9/Mines Scavenger-Mutant | -9/Exiles Scavenger-Mutant | -8/Mines Scavenger-Mutant | -8/Materials Hacker-Mutant | -7/Factory Hacker-Mutant | -7/Lower Caves Hacker-Mutant | -7/Lower Caves Hacker-Mutant | -7/Data Miner Hacker-Mutant | -6/Proximity Caves Hacker-Skirmisher | -6/Factory Commander-Mutant | -6/Extension Scavenger-Mutant | -6/Cetus Scavenger-Mutant | -6/Archives Scavenger-Mutant | -6/Hub_04(d) Hacker-Tank | -5/Factory Hacker-Tank | -5/Upper Caves Hacker-Mutant | -5/Upper Caves Hacker-Mutant | -5/Warlord Resources | -11 -10 -10 -9 -9 -9 -8 -8 -7 -7 -7 -7 -6 -6 -6 -6 -6 -6 -5 -5 -5 -5 ----------- Run | Jun Mat Min Mat Min Exi Min Mat Fac Low Low Dat Pro Fac Ext Cet Arc Hub Fac Upp Upp War Matter Collected 8211 | 216 212 74 264 31 . . 788 2170 448 422 . 162 . 103 206 583 281 838 730 683 . Remotely . | . . . . . . . . . . . . . . . . . . . . . . Salvage Created 8032 | . 394 85 560 52 . . 1183 2092 252 1 . 110 . 187 329 340 340 1085 621 401 . Parts 449 | . 32 13 47 9 . . 81 99 9 1 . 4 . 10 11 23 17 47 27 19 . Haulers Intercepted 3 | . . . 1 . . . 1 1 . . . . . . . . . . . . . Recyclers Shooed 10 | . . . 1 1 . . 1 5 . . . . . . . . . 2 . . . Parts Field Recycled . | . . . . . . . . . . . . . . . . . . . . . . Retrieved Matter . | . . . . . . . . . . . . . . . . . . . . . . Parts Self-Destructed 67 | . . . . . . . . . 13 1 . 6 . . . . . . 22 25 . Prevented 5 | . . . . . . . . . 2 . . . . . . . . . . 3 . Kills | -11 -10 -10 -9 -9 -9 -8 -8 -7 -7 -7 -7 -6 -6 -6 -6 -6 -6 -5 -5 -5 -5 ------- Run | Jun Mat Min Mat Min Exi Min Mat Fac Low Low Dat Pro Fac Ext Cet Arc Hub Fac Upp Upp War Combat Hostiles Destroyed 199 | . 11 6 16 3 . . 38 48 12 1 . 2 . 3 8 4 5 20 14 8 . Melee 1 | . . . . . . . . . . . . . . . . . . . . 1 . Guns 58 | . 7 6 13 3 . . 18 . . . . . . . . . . 2 8 1 . Cannons 92 | . . . . . . . 11 34 10 1 . 2 . 3 2 4 3 11 6 5 . AOE 44 | . 4 . 3 . . . 8 13 2 . . . . . 5 . 2 7 . . . Classes Destroyed 18 | . 5 . 2 1 . . 2 6 . . . . . . . . 1 . 1 . . Worker 11 | . 1 . . . . . 1 5 . . . . . . . . 1 3 . . . Builder 6 | . . . . . . . 2 3 . . . . . . . . . 1 . . . Tunneler 1 | . . . . 1 . . . . . . . . . . . . . . . . . Hauler 3 | . . . 1 . . . 1 1 . . . . . . . . . . . . . Recycler 11 | . . . . . . . . 7 . . . . . . . . 1 3 . . . Minesweeper 2 | . . . . . . . . . . . . . . . . . . . 2 . . Mechanic 2 | . . . . . . . . 2 . . . . . . . . . . . . . Operator 13 | . 1 . 1 . . . 2 . . . . . . . . 9 . . . . . Watcher 18 | . 2 . 2 . . . 3 6 . . . . . . 1 . 1 3 . . . Swarmer 59 | . 3 6 6 3 . . 17 3 6 . . . . . 4 . . 4 4 3 . Cutter 2 | . . . . . . . . . . . . . . . . . 2 . . . . Grunt 64 | . 8 . 6 . . . 13 20 5 . . . . 1 . . 1 5 3 2 . Brawler 7 | . . . . . . . 1 3 1 . . . . . . . . . 1 1 . Duelist 5 | . . . . . . . . 5 . . . . . . . . . . . . . Protector 2 | . . . . . . . . 2 . . . . . . . . . . . . . Sentry 22 | . . . 4 . . . 7 3 . . . . . 1 . 4 1 1 . 1 . Hunter 11 | . . . . . . . . 5 . . . 2 . 1 . . . 2 . 1 . Programmer 20 | . . . . . . . . 7 . 1 . . . . 1 . 1 8 2 . . Cetus Guard 3 | . . . . . . . . . . . . . . . 3 . . . . . . Thug 5 | . . . . . . . . . . . . . . . 1 . . . 4 . . Savage 1 | . . . . . . . . . . . . . . . 1 . . . . . . Guerrilla 1 | . . . . . . . . . . . . . . . 1 . . . . . . Best Kill Streak 14 | . 4 3 4 3 . . 6 14 4 1 . 1 . 1 5 2 3 7 4 2 . Combat Bots Only 10 | . 4 3 4 3 . . 6 10 4 1 . 1 . 1 4 2 2 6 4 2 . Max Kills in Single Turn 5 | . 2 2 2 1 . . 4 5 1 1 . 1 . 1 3 1 3 4 1 1 . Gunslinging 1 | . . 1 . . . . . . . . . . . . . . . . . . . Exploded 4 | . 2 . 2 . . . 3 4 1 . . . . . 3 . 2 2 . . . Melee 1 | . . . . . . . . . . . . . . . . . . . . 1 . Uniques/NPCs Destroyed . | . . . . . . . . . . . . . . . . . . . . . . Combat | -11 -10 -10 -9 -9 -9 -8 -8 -7 -7 -7 -7 -6 -6 -6 -6 -6 -6 -5 -5 -5 -5 -------- Run | Jun Mat Min Mat Min Exi Min Mat Fac Low Low Dat Pro Fac Ext Cet Arc Hub Fac Upp Upp War Damage Taken 15723 | . 654 114 455 72 . . 1502 3319 862 250 . 79 . 332 385 365 858 2263 1446 2036 731 Core 1947 | . 84 48 54 9 . . 203 369 167 63 . 26 . 94 32 22 61 113 169 240 193 Absorbed by Shields 974 | . . . . . . . . . . 88 . 30 . 126 133 286 39 . 272 . . Regen/Repaired (Parts) 289 | . . . . . . . 103 117 . . . . . . . . . . . . 69 Core Remaining (%) 63 | 100 . 47 . . . 84 63 . . . . 10 . . . . 75 . . . . Volleys Fired 590 | . 37 7 35 5 . . 106 149 33 12 . 3 1 4 10 46 16 52 41 33 . Largest 3 | . 2 2 2 2 . . 2 2 2 2 . 2 2 2 2 2 2 3 3 3 . Hottest 186 | . 90 46 86 79 . . 88 180 92 92 . 180 180 180 180 143 143 186 186 182 . Shots Fired 1208 | . 69 14 70 10 . . 200 294 64 28 . 6 2 8 20 92 32 134 100 65 . Gun 369 | . 62 14 68 10 . . 116 . . . . . . . . . . 33 50 16 . Cannon 791 | . 5 . . . . . 80 278 56 23 . 6 2 8 15 92 32 95 50 49 . Launcher 48 | . 2 . 2 . . . 4 16 8 5 . . . . 5 . . 6 . . . Special . | . . . . . . . . . . . . . . . . . . . . . . Kinetic 818 | . 25 14 42 5 . . 139 173 56 23 . . . . 3 87 16 118 66 51 . Thermal 322 | . 42 . 26 5 . . 47 105 . . . 6 2 8 12 5 16 10 34 4 . Explosive 48 | . 2 . 2 . . . 4 16 8 5 . . . . 5 . . 6 . . . Electromagnetic 20 | . . . . . . . 10 . . . . . . . . . . . . 10 . Robot Hit Streak 37 | . 5 4 11 2 . . 37 10 4 5 . 2 . 2 6 10 9 8 8 5 . Robot Miss Streak 9 | . 4 7 3 3 . . 7 9 7 4 . 1 . 2 4 7 8 8 3 7 . Penetration Max 2 | . . . . . . . . . . . . . . . . 1 . 2 1 . . Secondary Targets 4 | . . 2 1 . . . 1 . . . . . . . . . . . . . . Max Gunslinging Chain 1 | . . 1 1 . . . 1 . . . . . . . . . . . . . . Shots Hit Robots 765 | . 38 8 46 3 . . 156 198 30 12 . 3 . 4 9 67 22 84 59 26 . Core Hits 604 | 1 26 6 32 4 . . 108 153 25 4 . 2 . 3 24 56 26 96 26 12 . Critical Kills 14 | . . . . . . . . 1 . . . . . . . 8 . 4 . 1 . Critical Parts Destroyed 22 | . . . 1 . . . . . . . . . . . . 7 . 13 . 1 . Critical Strikes 59 | . . . 5 . . . 6 3 2 . . . . . . 16 . 20 4 3 . Burn 10 | . . . 4 . . . 4 . . . . . . . . . . . 2 . . Meltdown 1 | . . . . . . . . 1 . . . . . . . . . . . . . Destroy 34 | . . . 1 . . . . . . . . . . . . 16 . 17 . . . Blast 11 | . . . . . . . 2 2 2 . . . . . . . . 3 2 . . Corrupt 1 | . . . . . . . . . . . . . . . . . . . . 1 . Smash 2 | . . . . . . . . . . . . . . . . . . . . 2 . Melee Attacks 7 | . . . . . . . . 2 . . . . . . . . . . . 5 . Impact 7 | . . . . . . . . 2 . . . . . . . . . . . 5 . Slashing . | . . . . . . . . . . . . . . . . . . . . . . Piercing . | . . . . . . . . . . . . . . . . . . . . . . Sneak Attacks 1 | . . . . . . . . 1 . . . . . . . . . . . . . Combat Hostiles . | . . . . . . . . . . . . . . . . . . . . . . Follow-up Attacks . | . . . . . . . . . . . . . . . . . . . . . . Damage Inflicted 26108 | 18 821 152 965 69 . 6 3426 8487 969 196 . 199 . 227 1196 1638 1240 3644 1985 870 . Guns 4291 | . 487 135 761 54 . . 1550 . . . . . . . . . . 213 938 153 . Cannons 14160 | . 36 . . . . . 1343 5433 643 196 . 199 . 222 458 1638 729 1781 1047 435 . Explosions 7094 | . 296 . 201 . . . 504 2909 326 . . . . . 738 . 421 1618 . 81 . Melee 265 | . . . . . . . . 64 . . . . . . . . . . . 201 . Ramming 298 | 18 2 17 3 15 . 6 29 81 . . . . . 5 . . 90 32 . . . Kinetic 11787 | . 247 135 487 . . . 2020 2877 643 196 . . . . 18 1480 394 1693 1305 292 . Thermal 6871 | . 276 . 274 54 . . 692 2556 . . . 199 . 222 440 158 335 839 680 146 . Explosive 6054 | . 296 . 201 . . . 504 2909 326 . . . . . 738 . . 1080 . . . Electromagnetic 833 | . . . . . . . 181 . . . . . . . . . 421 . . 231 . Impact 265 | . . . . . . . . 64 . . . . . . . . . . . 201 . Slashing . | . . . . . . . . . . . . . . . . . . . . . . Piercing . | . . . . . . . . . . . . . . . . . . . . . . Highest Corruption 18 | . . . . . . . 1 3 3 13 13 16 . . . . 3 9 14 18 18 Average Corruption 7 | . . . . . . . 1 2 3 13 13 13 . . . . 2 6 12 14 18 Corruption Purged . | . . . . . . . . . . . . . . . . . . . . . . Corruption Blocked . | . . . . . . . . . . . . . . . . . . . . . . Effects 370 | . . . . . . . 11 57 22 50 5 15 . . . . . 35 120 50 5 Message Errors 98 | . . . . . . . 2 17 6 15 1 8 . . . . . 8 26 13 2 Matter Fused 88 | . . . . . . . 2 13 5 15 2 3 . . . . . 5 25 18 . Heat Flow Errors 36 | . . . . . . . 1 7 4 2 . 2 . . . . . 1 18 . 1 Energy Discharges 56 | . . . . . . . 2 6 5 2 1 . . . . . . 10 21 8 1 Parts Rejected 1 | . . . . . . . . 1 . . . . . . . . . . . . . Parts Fused 6 | . . . . . . . . 1 . 1 . . . . . . . . 4 . . Data Loss (minor) 36 | . . . . . . . 3 4 . 5 1 2 . . . . . 6 9 5 1 Data Loss (major) 13 | . . . . . . . . 2 1 3 . . . . . . . . 5 2 . Misfires 18 | . . . . . . . 1 4 . 4 . . . . . . . 2 6 1 . Alerts 10 | . . . . . . . . 1 . 2 . . . . . . . 1 4 2 . Misdirections 2 | . . . . . . . . . . 1 . . . . . . . . . 1 . Weapon Failures 6 | . . . . . . . . 1 1 . . . . . . . . 2 2 . . Overload Shots 84 | . . . . . . . . 50 . . . 6 2 8 9 . . 4 5 . . Effects 3 | . . . . . . . . 2 . . . . . 1 . . . . . . . Energy Bleed 2 | . . . . . . . . 1 . . . . . 1 . . . . . . . Short Circuit 1 | . . . . . . . . 1 . . . . . . . . . . . . . Overflow Damage 1017 | . 30 . 5 . . . 39 505 20 . . . . 21 13 31 45 203 68 37 . Projectiles 497 | . . . . . . . . 358 . . . . . 21 . 31 3 16 68 . . Explosions 441 | . 30 . 5 . . . 39 105 20 . . . . . 13 . 42 187 . . . Melee 79 | . . . . . . . . 42 . . . . . . . . . . . 37 . Knockbacks 142 | . . . . . . . 14 60 7 4 . . . . . 20 5 26 3 3 . Impact 3 | . . . . . . . . 2 . . . . . . . . . . . 1 . Kinetic 130 | . . . . . . . 11 56 7 4 . . . . . 20 3 24 3 2 . Secondary 9 | . . . . . . . 3 2 . . . . . . . . 2 2 . . . Self-Inflicted Damage 959 | . 63 . . . . . 23 421 61 . . . . 2 14 . 104 223 . 48 . Shots 20 | . 1 . . . . . 1 10 1 . . . . . 1 . 1 4 . 1 . Rammed 38 | 3 1 3 3 3 . 1 2 8 . . . . . 2 . . 7 5 . . . Targets Rammed 43 | 3 1 3 3 4 . 1 3 11 . . . . . 2 . . 7 5 . . . Kicked . | . . . . . . . . . . . . . . . . . . . . . . Crushed 5 | . . . . 1 . . 1 3 . . . . . . . . . . . . . Highest Temperature 409 | . 348 . 19 . . . 167 215 232 219 . 214 . 78 258 379 165 378 371 409 79 Average Temperature 91 | . 108 . 5 . . . 53 48 48 113 . 48 . 34 86 148 49 126 114 117 40 Received Heat Transfer 3759 | . 219 . 156 . . . 558 927 144 9 . . . 63 62 69 103 264 546 417 222 Effects 16 | . . . . . . . . . . . . . . . . 8 . 2 2 4 . Shutdowns 2 | . . . . . . . . . . . . . . . . 2 . . . . . Energy Bleed 1 | . . . . . . . . . . . . . . . . . . 1 . . . Interference 7 | . . . . . . . . . . . . . . . . 5 . . . 2 . Short Circuit 2 | . . . . . . . . . . . . . . . . . . . 1 1 . Damage (minor) 4 | . . . . . . . . . . . . . . . . 1 . 1 1 1 . Siege Activations . | . . . . . . . . . . . . . . . . . . . . . . Robots Corrupted 2 | . . . . . . . 1 . . . . . . . . . . . . 1 . Combat Hostiles 2 | . . . . . . . 1 . . . . . . . . . . . . 1 . Parts Fried 3 | . . . . . . . . . . . . . . . . . 2 . . 1 . Impact Corruptions 4 | . . . . . . . . 2 . . . . . . . . . . . 2 . Robots Melted 1 | . . . . . . . . 1 . . . . . . . . . . . . . Combat Hostiles 1 | . . . . . . . . 1 . . . . . . . . . . . . . Parts Melted 24 | . 1 . 2 . . . 4 14 . . . . . 1 1 . . 1 . . . Heat Transferred 9508 | . 708 . 888 111 . . 1776 2585 . . . 200 . 200 437 250 500 635 1068 150 . Parts Sabotaged . | . . . . . . . . . . . . . . . . . . . . . . Parts Stolen . | . . . . . . . . . . . . . . . . . . . . . . Parts Stripped . | . . . . . . . . . . . . . . . . . . . . . . Power Chain Reactions 1 | . . . . . . . . . . . . . . . . . . . . 1 . Missiles Intercepted . | . . . . . . . . . . . . . . . . . . . . . . Alert | -11 -10 -10 -9 -9 -9 -8 -8 -7 -7 -7 -7 -6 -6 -6 -6 -6 -6 -5 -5 -5 -5 ------- Run | Jun Mat Min Mat Min Exi Min Mat Fac Low Low Dat Pro Fac Ext Cet Arc Hub Fac Upp Upp War Peak Influence 1251 | . 326 173 492 153 . . 548 1251 . . . . 53 322 225 310 352 752 . . . Initial 233 | . . 43 66 93 . . . 233 . . . . 51 25 97 90 . 115 . . . Average 185 | . 170 101 278 37 . . 224 231 . . . . 51 148 153 158 36 211 . . . Maximum Alert Level 4 | . 1 . 2 . . . 2 4 . . . . . 1 1 1 1 3 . . . Low Security (%) 64 | 100 56 100 22 100 . 100 53 61 . . . . 100 72 77 69 95 56 . . . Level 1 23 | . 43 . 74 . . . 20 20 . . . . . 27 22 30 4 21 . . . Level 2 9 | . . . 3 . . . 26 9 . . . . . . . . . 18 . . . Level 3 1 | . . . . . . . . 4 . . . . . . . . . 2 . . . Level 4 1 | . . . . . . . . 3 . . . . . . . . . . . . . Level 5 . | . . . . . . . . . . . . . . . . . . . . . . High Security . | . . . . . . . . . . . . . . . . . . . . . . Max Security . | . . . . . . . . . . . . . . . . . . . . . . Squads Dispatched 42 | . 2 . 1 . . . 8 15 . . . . . 2 . . 4 10 . . . Investigation 7 | . 1 . . . . . 2 3 . . . . . . . . 1 . . . . Extermination 11 | . . . . . . . . 7 . . . . . . . . 1 3 . . . Reinforcement 12 | . 1 . 1 . . . 2 2 . . . . . 2 . . 2 2 . . . Assault 5 | . . . . . . . 1 3 . . . . . . . . . 1 . . . Garrison 7 | . . . . . . . 3 . . . . . . . . . . 4 . . . Intercept . | . . . . . . . . . . . . . . . . . . . . . . Searches Triggered . | . . . . . . . . . . . . . . . . . . . . . . Data Miner Redirects 1 | . . . . . . . . . . . . . . . . . 1 . . . . Construction Impeded 5 | . . . . . . . . 2 . . . . . 1 . . . 2 . . . Haulers Reinforced . | . . . . . . . . . . . . . . . . . . . . . . Active Scanning Responses . | . . . . . . . . . . . . . . . . . . . . . . Cargo Convoy Interrupts . | . . . . . . . . . . . . . . . . . . . . . . Stealth | -11 -10 -10 -9 -9 -9 -8 -8 -7 -7 -7 -7 -6 -6 -6 -6 -6 -6 -5 -5 -5 -5 --------- Run | Jun Mat Min Mat Min Exi Min Mat Fac Low Low Dat Pro Fac Ext Cet Arc Hub Fac Upp Upp War Distress Signals 16 | . 3 . 2 . . . 2 2 . . . . . 3 1 . 1 2 . . . Communications Jammed . | . . . . . . . . . . . . . . . . . . . . . . Distress Signals . | . . . . . . . . . . . . . . . . . . . . . . Times Spotted 360 | . 21 6 25 4 . . 53 74 11 2 . 3 . 21 15 33 24 34 16 12 6 Peak Tracking Total 18 | . 5 2 4 3 . . 6 10 4 1 . 2 . 4 5 2 18 8 4 6 6 Tactical Retreats 16 | . 1 . . . . . 2 2 . 1 . . . . 1 . 3 2 1 3 . Traps | -11 -10 -10 -9 -9 -9 -8 -8 -7 -7 -7 -7 -6 -6 -6 -6 -6 -6 -5 -5 -5 -5 ------- Run | Jun Mat Min Mat Min Exi Min Mat Fac Low Low Dat Pro Fac Ext Cet Arc Hub Fac Upp Upp War Traps Triggered 9 | . 2 . . . . . 2 2 . . . . . 3 . . . . . . . Indirectly . | . . . . . . . . . . . . . . . . . . . . . . Trap Hack Attempts . | . . . . . . . . . . . . . . . . . . . . . . Triggered . | . . . . . . . . . . . . . . . . . . . . . . Disarmed . | . . . . . . . . . . . . . . . . . . . . . . Reprogrammed . | . . . . . . . . . . . . . . . . . . . . . . Reused . | . . . . . . . . . . . . . . . . . . . . . . Traps Extracted . | . . . . . . . . . . . . . . . . . . . . . . Installed 15 | . . . . . . . . . . . . . . . . . . . 15 . . Triggered 24 | . . . . . . . . . 1 1 . . . . . . . . . . 22 Machines | -11 -10 -10 -9 -9 -9 -8 -8 -7 -7 -7 -7 -6 -6 -6 -6 -6 -6 -5 -5 -5 -5 ---------- Run | Jun Mat Min Mat Min Exi Min Mat Fac Low Low Dat Pro Fac Ext Cet Arc Hub Fac Upp Upp War Machines Disabled 45 | . 8 . . . . . . 8 . . . . . 5 . 3 4 17 . . . Max in Single Turn 11 | . 5 . . . . . . 2 . . . . . . . 1 4 11 . . . Garrison Access 4 | . . . . . . . . 3 . . . . . . . . 1 . . . . Network Hub 1 | . . . . . . . . . . . . . . . . . 1 . . . . Energy Cycler 2 | . . . . . . . . . . . . . . 2 . . . . . . . Machines Repaired . | . . . . . . . . . . . . . . . . . . . . . . Machines Sabotaged . | . . . . . . . . . . . . . . . . . . . . . . Overloaded Fab Kills . | . . . . . . . . . . . . . . . . . . . . . . Hacking | -11 -10 -10 -9 -9 -9 -8 -8 -7 -7 -7 -7 -6 -6 -6 -6 -6 -6 -5 -5 -5 -5 --------- Run | Jun Mat Min Mat Min Exi Min Mat Fac Low Low Dat Pro Fac Ext Cet Arc Hub Fac Upp Upp War Machines Accessed 58 | . 3 . 4 1 1 . 12 16 . 1 4 . . 1 . 1 4 4 1 . 5 Terminals 30 | . 3 . 3 . . . 9 7 . 1 . . . 1 . . 3 3 . . . Fabricators 3 | . . . . . . . . 2 . . . . . . . . . 1 . . . Repair Stations 3 | . . . . . . . 1 2 . . . . . . . . . . . . . Recycling Units . | . . . . . . . . . . . . . . . . . . . . . . Scanalyzers 4 | . . . 1 . . . 1 2 . . . . . . . . . . . . . Garrison Access 5 | . . . . . . . 1 3 . . . . . . . . 1 . . . . Total Hacks 168 | . 7 . 11 1 1 . 24 49 . 1 28 . . 2 . 6 11 15 1 . 11 Successful 117 | . 4 . 6 1 1 . 15 28 . 1 28 . . . . 6 4 11 1 . 11 Failed 51 | . 3 . 5 . . . 9 21 . . . . . 2 . . 7 4 . . . Catastrophic 15 | . 2 . . . . . 5 5 . . . . . . . . 3 . . . . Database Lockouts . | . . . . . . . . . . . . . . . . . . . . . . Manual 62 | . 7 . 8 . 1 . 17 16 . . . . . . . . 6 7 . . . Terminals 82 | . 7 . 7 . . . 18 23 . 1 . . . 2 . . 10 14 . . . Fabricators 5 | . . . . . . . . 4 . . . . . . . . . 1 . . . Repair Stations 8 | . . . . . . . 2 6 . . . . . . . . . . . . . Recycling Units . | . . . . . . . . . . . . . . . . . . . . . . Scanalyzers 17 | . . . 4 . . . 2 11 . . . . . . . . . . . . . Garrison Access 8 | . . . . . . . 2 5 . . . . . . . . 1 . . . . Terminal Hacks 76 | . 3 . 1 1 1 . 6 7 . 1 28 . . . . 6 2 8 1 . 11 Record 29 | . . . . . . . 1 . . 1 11 . . . . 6 . . . . 10 Part Schematic 10 | . 1 . . . . . . 1 . . 8 . . . . . . . . . . Robot Schematic 6 | . . . . . . . . . . . 6 . . . . . . . . . . Robot Analysis 4 | . 2 . 1 . . . . . . . . . . . . . . 1 . . . Prototype ID Bank 5 | . . . . . . . 1 1 . . 3 . . . . . . . . . . Open Door 3 | . . . . 1 . . . . . . . . . . . . . . 1 . 1 Branch Access Points 3 | . . . . . . . 1 1 . . . . . . . . . 1 . . . Machine Index 1 | . . . . . . . . . . . . . . . . . . 1 . . . Terminal Index 3 | . . . . . . . 1 1 . . . . . . . . . 1 . . . Fabricator Index 1 | . . . . . . . . 1 . . . . . . . . . . . . . Scanalyzer Index 1 | . . . . . . . . . . . . . . . . . . 1 . . . Alert Level 3 | . . . . . . . . 1 . . . . . . . . 1 1 . . . Security Status 2 | . . . . . . . 1 . . . . . . . . . . 1 . . . Recall Reinforcements 2 | . . . . . . . 1 . . . . . . . . . . 1 . . . Registered Components 1 | . . . . . . . . 1 . . . . . . . . . . . . . Zone Layout 1 | . . . . . . . . . . . . . . . . . 1 . . . . EX-Prototype ID Bank 1 | . . . . . 1 . . . . . . . . . . . . . . . . Fabricator Hacks 4 | . . . . . . . . 3 . . . . . . . . . 1 . . . Network Status 2 | . . . . . . . . 1 . . . . . . . . . 1 . . . Load Schematic 1 | . . . . . . . . 1 . . . . . . . . . . . . . Build 1 | . . . . . . . . 1 . . . . . . . . . . . . . Repair Station Hacks 6 | . . . . . . . 2 4 . . . . . . . . . . . . . Scan Component 3 | . . . . . . . 1 2 . . . . . . . . . . . . . Repair 3 | . . . . . . . 1 2 . . . . . . . . . . . . . Recycling Unit Hacks . | . . . . . . . . . . . . . . . . . . . . . . Scanalyzer 10 | . . . 4 . . . 1 5 . . . . . . . . . . . . . Insert Component 5 | . . . 2 . . . 1 2 . . . . . . . . . . . . . Analyze 5 | . . . 2 . . . . 3 . . . . . . . . . . . . . Garrison Access Hacks 4 | . . . . . . . . 3 . . . . . . . . 1 . . . . Seal Access 4 | . . . . . . . . 3 . . . . . . . . 1 . . . . Unauthorized Hacks 17 | . 1 . 1 . . . 6 6 . . . . . . . . 1 2 . . . Terminals 17 | . 1 . 1 . . . 6 6 . . . . . . . . 1 2 . . . Botnet 15 | . 1 . 1 . . . 5 6 . . . . . . . . 1 1 . . . Operators 2 | . . . . . . . 1 . . . . . . . . . . 1 . . . Fabricators . | . . . . . . . . . . . . . . . . . . . . . . Repair Stations . | . . . . . . . . . . . . . . . . . . . . . . Recycling Units . | . . . . . . . . . . . . . . . . . . . . . . Scanalyzers . | . . . . . . . . . . . . . . . . . . . . . . Garrison Access . | . . . . . . . . . . . . . . . . . . . . . . Data Cores Recovered . | . . . . . . . . . . . . . . . . . . . . . . Used . | . . . . . . . . . . . . . . . . . . . . . . Hacking Detections 34 | . 2 . 4 . . . 8 14 . . . . . 1 . . 3 2 . . . Full Trace Events 7 | . . . 2 . . . 1 3 . . . . . . . . 1 . . . . Feedback Events . | . . . . . . . . . . . . . . . . . . . . . . Feedback Blocked . | . . . . . . . . . . . . . . . . . . . . . . Robot Schematics Acquired 6 | . . . . . . . . . . . 6 . . . . . . . . . . Robots Built . | . . . . . . . . . . . . . . . . . . . . . . Authchips . | . . . . . . . . . . . . . . . . . . . . . . Time . | . . . . . . . . . . . . . . . . . . . . . . Total Robot Build Rating . | . . . . . . . . . . . . . . . . . . . . . . Part Schematics Acquired 14 | . 1 . 2 . . . . 3 . . 8 . . . . . . . . . . Parts Built 1 | . . . . . . . . 1 . . . . . . . . . . . . . Authchips . | . . . . . . . . . . . . . . . . . . . . . . Time 73 | . . . . . . . . 73 . . . . . . . . . . . . . Total Part Build Rating 3 | . . . . . . . . 3 . . . . . . . . . . . . . Parts Repaired 3 | . . . . . . . 1 2 . . . . . . . . . . . . . Time 99 | . . . . . . . 32 67 . . . . . . . . . . . . . Parts Recycled . | . . . . . . . . . . . . . . . . . . . . . . Recycled Matter . | . . . . . . . . . . . . . . . . . . . . . . Retrieved Matter . | . . . . . . . . . . . . . . . . . . . . . . Retrieved Components . | . . . . . . . . . . . . . . . . . . . . . . Parts Scanalyzed 5 | . . . 2 . . . 1 2 . . . . . . . . . . . . . Part Schematics Acquired 4 | . . . 2 . . . . 2 . . . . . . . . . . . . . Parts Damaged . | . . . . . . . . . . . . . . . . . . . . . . Bothacking | -11 -10 -10 -9 -9 -9 -8 -8 -7 -7 -7 -7 -6 -6 -6 -6 -6 -6 -5 -5 -5 -5 ------------ Run | Jun Mat Min Mat Min Exi Min Mat Fac Low Low Dat Pro Fac Ext Cet Arc Hub Fac Upp Upp War Used RIF Installer . | . . . . . . . . . . . . . . . . . . . . . . Robots Hacked . | . . . . . . . . . . . . . . . . . . . . . . Non-combat . | . . . . . . . . . . . . . . . . . . . . . . Combat . | . . . . . . . . . . . . . . . . . . . . . . Robot Hacks Applied . | . . . . . . . . . . . . . . . . . . . . . . Relay Couplers Released . | . . . . . . . . . . . . . . . . . . . . . . Fabnet Peak Effective % . | . . . . . . . . . . . . . . . . . . . . . . Robots Rewired 9 | . . . . . . . . . . . . . . 9 . . . . . . . Allies Hacked . | . . . . . . . . . . . . . . . . . . . . . . Hacks Repelled . | . . . . . . . . . . . . . . . . . . . . . . Allies | -11 -10 -10 -9 -9 -9 -8 -8 -7 -7 -7 -7 -6 -6 -6 -6 -6 -6 -5 -5 -5 -5 -------- Run | Jun Mat Min Mat Min Exi Min Mat Fac Low Low Dat Pro Fac Ext Cet Arc Hub Fac Upp Upp War Total Allies 16 | . . . . . . . . . . . . 1 . 15 . . . . . . . Largest Group 12 | . . . . . . . . . . . . 1 1 12 11 . . . . . . Highest-Rated Group 425 | . . . . . . . . . . . . 96 96 425 400 . . . . . . Highest-Rated Ally 96 | . . . . . . . . . . . . 96 96 96 96 . . . . . . Total Orders 13 | . . . . . . . 1 11 1 . . . . . . . . . . . . FOLLOW 1 | . . . . . . . . 1 . . . . . . . . . . . . . EXPLORE 10 | . . . . . . . 1 8 1 . . . . . . . . . . . . RETURN 2 | . . . . . . . . 2 . . . . . . . . . . . . . Ally Attacks 145 | . . . . . . . . . . . . 10 . 113 22 . . . . . . Total Damage 3668 | . . . . . . . . . . . . 268 . 3038 362 . . . . . . Kills 23 | . . . . . . . . . . . . 1 . 21 1 . . . . . . Allies Corrupted . | . . . . . . . . . . . . . . . . . . . . . . Allies Melted 2 | . . . . . . . . . . . . . . . . . . . . . 2 Intel | -11 -10 -10 -9 -9 -9 -8 -8 -7 -7 -7 -7 -6 -6 -6 -6 -6 -6 -5 -5 -5 -5 ------- Run | Jun Mat Min Mat Min Exi Min Mat Fac Low Low Dat Pro Fac Ext Cet Arc Hub Fac Upp Upp War Robot Analysis Total 4 | . 2 . 1 . . . . . . . . . . . . . . 1 . . . Derelict Logs Recovered 6 | . . 1 . 1 . . . . 1 1 . 1 . . . . . . . 1 . Drone Launches 12 | . . . . . . . 1 10 1 . . . . . . . . . . . . Drone Recoveries 2 | . . . . . . . . 2 . . . . . . . . . . . . . Exploration | -11 -10 -10 -9 -9 -9 -8 -8 -7 -7 -7 -7 -6 -6 -6 -6 -6 -6 -5 -5 -5 -5 ------------- Run | Jun Mat Min Mat Min Exi Min Mat Fac Low Low Dat Pro Fac Ext Cet Arc Hub Fac Upp Upp War Turns Passed 30969 | 105 1078 249 889 1170 572 257 2840 6372 1428 1261 120 343 92 2870 384 872 809 2439 3036 1364 2419 Spaces Moved 10491 | 59 531 91 302 476 238 106 1147 2258 243 480 85 188 39 1164 146 406 430 910 415 333 444 Core 44 | 4 . . . . . . . . 16 . . . . . . . . . 3 11 10 Treads 8079 | 55 530 91 302 476 238 106 1147 2258 227 . . . . 672 146 406 430 910 1 48 36 Legs 358 | . 1 . . . . . . . . 55 . . . . . . . . 302 . . Wheels 1430 | . . . . . . . . . . 425 85 188 39 492 . . . . . 201 . Hover 580 | . . . . . . . . . . . . . . . . . . . 109 73 398 Flight . | . . . . . . . . . . . . . . . . . . . . . . Fastest Speed 50 | 50 160 240 240 240 240 240 160 156 240 155 140 155 230 230 160 160 160 240 240 160 400 Average Speed 264 | 152 172 240 240 240 240 240 188 240 543 249 140 171 230 236 227 168 167 240 690 362 541 Slowest Speed 1650 | 160 240 240 240 240 240 240 240 312 1650 890 155 245 230 400 240 240 240 240 1550 1450 1450 Overloaded Moves . | . . . . . . . . . . . . . . . . . . . . . . Propulsion Burnouts . | . . . . . . . . . . . . . . . . . . . . . . Robots Hopped . | . . . . . . . . . . . . . . . . . . . . . . Cave-ins Triggered . | . . . . . . . . . . . . . . . . . . . . . . Exploration Rate (%) 55 | 4 75 27 27 87 62 53 90 62 49 60 72 38 1 97 61 92 30 28 69 55 74 Regions Visited 21 Branch Regions 15 Pre-discovered Areas 4 | . . 1 . 1 . . . . . . 1 . . . . . . . . . 1 Known Exits Taken 8 | . . . . . . . . 1 1 1 1 1 1 . . . 1 1 . . . Unknown Exits Taken 13 | 1 1 1 1 1 1 1 1 . . . . . . 1 1 1 . . 1 1 . Scrap Searched 13 | . . . . 3 . 1 . . 1 2 . . . . . . . . 2 4 . Spaces Dug 103 | . . . . . . . 9 1 . 77 . . 2 . . . . . . 14 . Terrain Destroyed 868 | . 14 . 19 . . . 29 171 118 99 . 2 2 3 70 15 162 103 27 34 . Melee 1 | . . . . . . . . 1 . . . . . . . . . . . . . Projectile 165 | . . . . . . . 6 42 14 3 . 2 2 3 2 15 5 15 27 29 . AOE 702 | . 14 . 19 . . . 23 128 104 96 . . . . 68 . 157 88 . 5 . Terrain Rammed . | . . . . . . . . . . . . . . . . . . . . . . Walls Destroyed . | . . . . . . . . . . . . . . . . . . . . . . Machines Disabled . | . . . . . . . . . . . . . . . . . . . . . . Actions | -11 -10 -10 -9 -9 -9 -8 -8 -7 -7 -7 -7 -6 -6 -6 -6 -6 -6 -5 -5 -5 -5 --------- Run | Jun Mat Min Mat Min Exi Min Mat Fac Low Low Dat Pro Fac Ext Cet Arc Hub Fac Upp Upp War Total 12580 | 69 622 104 392 490 241 108 1625 2905 300 517 86 202 40 1277 178 500 481 1051 507 427 458 Wait 987 | . 30 1 34 1 . 2 320 374 15 16 . 7 . 19 1 33 19 51 20 37 7 Move 10471 | 59 530 90 301 475 237 105 1146 2257 242 479 84 187 38 1163 145 405 429 909 414 332 444 Hop . | . . . . . . . . . . . . . . . . . . . . . . Pick Up 108 | 2 8 2 8 1 2 . 8 32 2 1 . 1 . 13 . 9 1 7 2 6 3 Fast Attach 52 | 6 4 1 2 . . . 5 10 . 2 . . . 7 1 . 2 2 7 2 1 Attach 74 | . 1 . . . . . 10 18 4 4 . 2 1 1 2 . 1 15 6 8 1 Detach 20 | . 1 . . . . . 4 6 1 . 2 . . 1 1 . . 1 . 1 2 Swap 75 | . 5 . 7 1 . . 12 15 3 3 . 2 . . 9 4 2 8 2 2 . Drop 75 | . 5 . 2 3 2 . 11 29 . . . . . 5 9 3 4 1 . 1 . Fire 590 | . 37 7 35 5 . . 106 149 33 12 . 3 1 4 10 46 16 52 41 33 . Melee 7 | . . . . . . . . 2 . . . . . . . . . . . 5 . Ram 1 | . . . . . . . . . . . . . . 1 . . . . . . . Kick . | . . . . . . . . . . . . . . . . . . . . . . Crush 41 | 2 1 3 3 4 . 1 3 11 . . . . . 1 . . 7 5 . . . Escape Stasis 20 | . . . . . . . . 2 . . . . . 18 . . . . . . . Rewire 44 | . . . . . . . . . . . . . . 44 . . . . . . . Trap 15 | . . . . . . . . . . . . . . . . . . . 15 . . Miscellaneous . | . . . . . . . . . . . . . . . . . . . . . . Route ------- -11/Junkyard -10/Materials (discovered 3 exits: *Mat x2 / [*Min]) -10/Mines (discovered 2 exits: *Mat x2) -9/Materials -9/Mines (discovered 3 exits: *Mat x2 / *Exi) -9/Exiles -8/Mines -8/Materials (discovered 3 exits: *Fac x2 / *Sto) -7/Factory (discovered 3 exits: *Fac / *Low x2) -7/Lower Caves -7/Lower Caves (discovered 2 exits: *Fac / *Dat) -7/Data Miner -6/Proximity Caves -6/Factory (discovered 3 exits: *Fac / Low / *Ext) -6/Extension (discovered 3 exits: *Fac x2 / *Cet) -6/Cetus -6/Archives (discovered 3 exits: *Fac / *Hub x2) -6/Hub_04(d) -5/Factory (discovered 2 exits: *Upp x2) -5/Upper Caves -5/Upper Caves -5/Warlord History --------- Turn | Location | Event 10 | -11/Junkyard | Discovered new exit (range 15) 106 | -11/Junkyard | Entered Materials 325 | -10/Materials | Build established: Mutant 397 | -10/Materials | Discovered new exit (range 11) 502 | -10/Materials | Discovered new exit (range 3) 923 | -10/Materials | Discovered new exit (range 5) 1184 | -10/Materials | Entered Mines 1249 | -10/Mines | Learned location of Mines (-9) 1276 | -10/Mines | Found a damaged Exp. Sensor Array with a note attached 1280 | -10/Mines | Found Prototype Device 1331 | -10/Mines | Discovered new exit (range 7) 1331 | -10/Mines | Discovered new exit (range 4) 1348 | -10/Mines | Core integrity fell below 50% 1433 | -10/Mines | Entered Materials 1433 | -9/Materials | Evolved 2 slots: Utility x2 1867 | -9/Materials | Build established: Scavenger-Mutant 2178 | -9/Materials | Discovered new exit (range 16) 2322 | -9/Materials | Entered Mines 2344 | -9/Mines | Met a Derelict bent on vengeance 2402 | -9/Mines | Learned Materials emergency access door positions 2423 | -9/Mines | A weapon hastily lodged in a ceiling crevice suddenly fell to the ground 2508 | -9/Mines | Found the Drone Emporium 2525 | -9/Mines | Found Prototype Device 2731 | -9/Mines | Learned location of Storage (-8) 3295 | -9/Mines | Discovered new exit (range 9) 3379 | -9/Mines | Discovered new exit (range 7) 3482 | -9/Mines | Deemed a non-threat by the Exiles lab entrance 3482 | -9/Mines | Discovered new exit (range 5) 3492 | -9/Mines | Entered Exiles 3552 | -9/Exiles | Met 8R-AWN 3593 | -9/Exiles | Met EX-HEX 3665 | -9/Exiles | Met EX-BIN 3694 | -9/Exiles | Aligned with FarCom system 3696 | -9/Exiles | Given EX-Vault access code 3759 | -9/Exiles | Opened EX-Vault 3776 | -9/Exiles | Found Trap Reconfigurator 3828 | -9/Exiles | Warned to stay clear of 0b10 Research branches 3857 | -9/Exiles | Exiles lab attacked by MAIN.C 4045 | -9/Exiles | Discovered new exit (range 10) 4064 | -9/Exiles | Left Exiles lab with Trap Reconfigurator 4064 | -9/Exiles | Entered Mines 4304 | -8/Mines | Discovered new exit (range 8) 4321 | -8/Mines | Entered Materials 4321 | -8/Materials | Evolved 2 slots: Propulsion x1, Utility x1 4525 | -8/Materials | Garrison activated, responded to threat 4886 | -8/Materials | Discovered new exit (range 16) 5336 | -8/Materials | Repaired Med. Armor Plating 5572 | -8/Materials | Lost 4 parts (1p2u1w) 5938 | -8/Materials | Identified Exp. Sensor Array 5945 | -8/Materials | Identified Decoy Drone Bay 6113 | -8/Materials | Discovered new exit (range 4) 6667 | -8/Materials | Identified exit to Storage 7083 | -8/Materials | Discovered new exit (range 14) 7121 | -8/Materials | First assault squad dispatched 7161 | -8/Materials | Entered Factory 7161 | -7/Factory | Evolved 2 slots: Propulsion x1, Utility x1 8377 | -7/Factory | Build established: Mutant 8662 | -7/Factory | Repaired Cooling System 9202 | -7/Factory | Build established: Hacker-Mutant 9486 | -7/Factory | Discovered new exit (range 36) 9946 | -7/Factory | Discovered new exit (range 11) 10523 | -7/Factory | Identified exit to Lower Caves 11825 | -7/Factory | Fabricated Hacking Suite (x1) 13161 | -7/Factory | First assault squad dispatched 13206 | -7/Factory | Repaired Cld. Particle Cannon 13345 | -7/Factory | Destroyed 10 combat bots 13461 | -7/Factory | Core integrity fell below 50% 13533 | -7/Factory | Entered Lower Caves 13930 | -7/Lower Caves | Lost 3 parts (1n1u1w) 14015 | -7/Lower Caves | Identified exit to Lower Caves 14741 | -7/Lower Caves | Lost 4 parts (1p1n1u1w) 14961 | -7/Lower Caves | Entered another Lower Caves area 14962 | -7/Lower Caves | System corruption reached 10% 15019 | -7/Lower Caves | Discovered new exit (range 15) 15180 | -7/Lower Caves | Identified exit to Factory 15674 | -7/Lower Caves | Learned 8 Factory zone layouts 15748 | -7/Lower Caves | Spotted B-75 Beast 15819 | -7/Lower Caves | Core integrity fell below 20% 16058 | -7/Lower Caves | Encountered a Warlord checkpoint 16112 | -7/Lower Caves | Discovered new exit (range 5) 16116 | -7/Lower Caves | Identified exit to Data Miner 16222 | -7/Lower Caves | Entered Data Miner 16222 | -7/Data Miner | Discovered new exit (range 6) 16251 | -7/Data Miner | Met Data Miner 16288 | -7/Data Miner | Learned location of Section 7 (-3) 16288 | -7/Data Miner | Acquired the access code to Warlord's prototype stash 16309 | -7/Data Miner | Received God Mode back door access code from Data Miner 16340 | -7/Data Miner | Identified exit to Proximity Caves 16342 | -7/Data Miner | Entered Proximity Caves 16570 | -6/Proximity Caves | Learned Factory stockpile data 16584 | -6/Proximity Caves | Escorted by Enhanced Grunt 16655 | -6/Proximity Caves | Discovered exit to Factory (range 11) 16685 | -6/Proximity Caves | Entered Factory 16685 | -6/Factory | Accompanied by 1 ally 16685 | -6/Factory | Evolved 2 slots: Power x1, Utility x1 16686 | -6/Factory | Identified exit to Lower Caves 16686 | -6/Factory | Identified exit to Factory 16686 | -6/Factory | Identified exit to Extension 16777 | -6/Factory | Entered Extension 16777 | -6/Extension | Accompanied by 1 ally 16955 | -6/Extension | Rescued a captive Derelict 16970 | -6/Extension | Rescued a captive Derelict 16991 | -6/Extension | Build established: Hacker-Skirmisher 17007 | -6/Extension | Rescued a captive Derelict 17023 | -6/Extension | Energy Cycler disabled 17023 | -6/Extension | Rescued a captive Derelict 17023 | -6/Extension | Rescued a captive Derelict 17024 | -6/Extension | Rescued a captive Derelict 17025 | -6/Extension | Rescued a captive Derelict 17028 | -6/Extension | Rescued a captive Derelict 17031 | -6/Extension | Rescued a captive Derelict 17033 | -6/Extension | Rescued a captive Derelict 17035 | -6/Extension | Rescued a captive Derelict 17917 | -6/Extension | Spotted B-75 Beast 17924 | -6/Extension | Allies destroyed B-75 Beast 17925 | -6/Extension | Spotted B-75 Beast 17942 | -6/Extension | Allies destroyed B-75 Beast 17943 | -6/Extension | Discovered exit to Factory (range 13) 18051 | -6/Extension | Extracted ID and sensor layout for unrecognized location from A7's data core 18248 | -6/Extension | Build established: Scavenger-Skirmisher 18666 | -6/Extension | Build established: Commander-Mutant 18774 | -6/Extension | Discovered exit to Factory (range 10) 18777 | -6/Extension | Discovered new exit (range 6) 19647 | -6/Extension | Entered Cetus 19647 | -6/Cetus | Accompanied by 11 allies 19676 | -6/Cetus | Spotted Cetus Guard 19676 | -6/Cetus | Spotted Cetus Guard 19680 | -6/Cetus | Spotted Cetus Guard 19682 | -6/Cetus | Spotted Cetus Guard 19693 | -6/Cetus | Allies destroyed Cetus Guard 19698 | -6/Cetus | Destroyed Cetus Guard 19700 | -6/Cetus | Destroyed Cetus Guard 19711 | -6/Cetus | Destroyed Cetus Guard 19982 | -6/Cetus | Build established: Scavenger-Mutant 19995 | -6/Cetus | Discovered new exit (range 16) 20031 | -6/Cetus | Entered Archives 20286 | -6/Archives | Discovered new exit (range 14) 20334 | -6/Archives | Discovered exit to Factory (range 16) 20576 | -6/Archives | Discovered new exit (range 16) 20785 | -6/Archives | Unable to access archive contents 20903 | -6/Archives | Entered Hub_04(d) 21330 | -6/Hub_04(d) | Discovered exit to Factory (range 6) 21595 | -6/Hub_04(d) | Incoming investigation squad redirected 21677 | -6/Hub_04(d) | Network Hub disabled 21684 | -6/Hub_04(d) | Spotted Lightning 21687 | -6/Hub_04(d) | Spotted Lightning 21689 | -6/Hub_04(d) | Spotted Lightning 21691 | -6/Hub_04(d) | Spotted Lightning 21711 | -6/Hub_04(d) | Spotted Lightning 21712 | -6/Hub_04(d) | Entered Factory 21712 | -5/Factory | Evolved 2 slots: Utility x1, Weapon x1 21742 | -5/Factory | Lost 5 parts (1p1n3u) 21960 | -5/Factory | Identified exit to Upper Caves 22076 | -5/Factory | Build established: Hacker-Tank 23525 | -5/Factory | Garrison activated, responded to threat 23650 | -5/Factory | Garrison activated, responded to threat 23731 | -5/Factory | Lost 5 parts (1p1u3w) 24112 | -5/Factory | First assault squad dispatched 24151 | -5/Factory | Entered Upper Caves 24153 | -5/Upper Caves | Ambushed by wild Derelicts 24217 | -5/Upper Caves | Lost 7 parts (1n4u2w) 24587 | -5/Upper Caves | Build established: Scavenger-Mutant 24964 | -5/Upper Caves | Build established: Scavenger-Tank 25331 | -5/Upper Caves | System corruption reached 10% 25629 | -5/Upper Caves | Build established: Hacker-Tank 26392 | -5/Upper Caves | Lost 3 parts (1p2w) 26649 | -5/Upper Caves | Build established: Hacker-Mutant 27132 | -5/Upper Caves | Discovered new exit (range 5) 27187 | -5/Upper Caves | Entered another Upper Caves area 27189 | -5/Upper Caves | Attracted the attention of an 0b10 checkpoint 27266 | -5/Upper Caves | Learned location of 1 exit from Factory 27579 | -5/Upper Caves | Build established: Hacker-Tank 27755 | -5/Upper Caves | Lost 4 parts (1n2u1w) 27841 | -5/Upper Caves | Spotted B-75 Beast 28246 | -5/Upper Caves | Core integrity fell below 50% 28265 | -5/Upper Caves | Lost 5 parts (1p2n1u1w) 28392 | -5/Upper Caves | Build established: Hacker-Mutant 28511 | -5/Upper Caves | Discovered new exit (range 10) 28551 | -5/Upper Caves | Entered Warlord 28691 | -5/Warlord | System corruption cleaned by Quarantine Array 29631 | -5/Warlord | Learned location of Quarantine (-3) 29636 | -5/Warlord | Learned 4 Armory zone layouts 29636 | -5/Warlord | Learned 4 Quarantine zone layouts 29642 | -5/Warlord | Learned Factory garrison access intel 29642 | -5/Warlord | Learned Research scanalyzer intel 29851 | -5/Warlord | Warlord's base attacked by MAIN.C 30201 | -5/Warlord | Warlord forces counterattacked 30526 | -5/Warlord | Warlord base infiltrated, sounded retreat 30940 | -5/Warlord | Spotted Executioner 30970 | -5/Warlord | Self-destructed Last Messages --------------- 30948_ Slug penetrates G-50 Soldier. 30951_ ANNOUNCEMENT: Detected 1 Programmer squad, 1 Swarmer squad, 2 Grunt squads, with prototype support. 30952_ Penetrated by Slug. 30952_ Slug penetrates Wall. 30952_ Slug penetrates G-67 Veteran. 30955_ Backup Power III destroyed. 30957_ Backup Propulsion III destroyed. 30957_ Critical hit (Burn: +37). 30957_ Backup Power III destroyed. 30961_ Critical hit (Burn: +37). 30963_ Backup Propulsion III destroyed. 30963_ Imp. System Shield destroyed. 30963_ Penetrated by Slug. 30963_ Slug penetrates Wall. 30966_ Gauss Rifle destroyed. 30966_ Penetrated by Slug. 30966_ Slug penetrates Wall. 30966_ Penetrated by Slug. 30966_ Slug penetrates Earth. Map ----- +----------------------------------------------------+ | ???#####+#####+## ##### # # "" | | ??????# # # "" | | ####### # # "" | | + """ #### #######""### | | ######+######## """ #?????#""#?? | | #???# #?????### ## """ #?????#""#?? | | " #?#"" ""#?????# ## """ #??????""??? | | " #?#""" """#######+## """ ??????????? | | " #?#"" " ""# # #### #??????????? | | #?#"""""""# # ? ???# ???????????? | | ###?#"""""""# # #??????? ???????????? | | ?????######## # #???????# ???????????? | | ????????????# + #???????# ???????????? | | "???????????# && # #????????? ????????????? | | ""#?????????# ]!!] # #??????????????????????? | | "#?????????# # ####??????????????????????? | | "#?????????# # #?????????????????????????? | | "??????????########## #?????????????????????????? | | ""#??????????????????# #?????????????????????????? | | ""#??????????????????# #?????????????????????????? | | ""#??????????????????# #?????????????????????????? | | ""#???????######?????# #?????????????????????????? | | ""#???????#&& ####### #?????????????????????????? | | ??????????# +^^ ###???????????????????????? | | ??????????# # ^ gg;######## #??????????????? | | ??????????# #^^"" g; @ ;; ; ????????? | | ??????????###### "" E;|| + # #??????????????? | | ???????????????# """ #|| ;; #????????????????? | | ???????????????# """ #|| ## #????????????????? | | ???????????????# "" #####;#???????????????????? | | ??############?# "" #????##???????????????????? | | ??#"""""## ### #?????????????????????????? | | ??#"""X" + #?????????????????????????? | | ??#"" # ###########?????????????????????????? | | ??#"""X" #####???????????????????????????????????? | | ??#"""""##???????????????????????????????????????? | | ??######?????????????????????????????????????????? | | | | | | | | | | | | | | | | | | | | | | | | | | | +----------------------------------------------------+ Best States ------------- Heat Dissipation 91 Coolant Potential 65 Energy Generation 34 Energy Capacity 510 Matter Stores 409 Matter Capacity 500 Sight Range 16 Robot Scan Range 20 Terrain Scan Density 10 Armor Coverage 600 Resistance: EM 25 Phase Shifting 5 Evasion (%) 40 Target Analysis 6 Core Analysis 6 Recoil Reduction 4 Kinecelleration 30 Offensive Hacking 36 Defensive Hacking 12 Item Schematics ----------------- Huge Storage Unit | -10/Materials | Hacked Hacking Suite | -9/Materials | Scanalyzed Structural Scanner | -9/Materials | Scanalyzed Imp. Cooling System | -7/Factory | Scanalyzed Cld. Particle Cannon | -7/Factory | Scanalyzed Transmission Jammer | -7/Factory | Hacked Combat Drone Bay | -7/Data Miner | Free Lgt. Regenerative Plating | -7/Data Miner | Free Cld. Aerolev Unit | -7/Data Miner | Free Exp. Weapon Shielding | -7/Data Miner | Free Cld. Plasma Cannon | -7/Data Miner | Free Arm. Medium Treads | -7/Data Miner | Free Imp. Component Analysis Suite | -7/Data Miner | Free Imp. Remote Datajack | -7/Data Miner | Free Robot Schematics ------------------ H-66 Slayer | -7/Data Miner | Free E-15 Imp | -7/Data Miner | Free R-10 Processor | -7/Data Miner | Free G-50 Soldier | -7/Data Miner | Free A-15 Conveyor | -7/Data Miner | Free L-41 Fighter | -7/Data Miner | Free Fabricated ------------ Hacking Suite | x1 | -7/Factory Alien Tech Used ----------------- None Achievements -------------- None Challenges ------------ None Game ------ Seed ThrowingSensorBroadsword Manual? 0 Play Time 01:51:17 Cumulative 72.2 hours Start 2023.12.17 @ 08:03:31 End 2023.12.17 @ 11:09:28 Sessions 1 Manual Loads 0 Difficulty Rogue Special Mode None Game No. 98 Rogue 98 Adventurer 0 Explorer 0 Win Type - Total 1 Types 1/0/0/0/0/0/0/0/0 Lore% 38 Gallery% 48 Achievement% 42 Wizard Run 0 Options --------- ASCII 0 Keyboard 1 Movement Numpad Keybinds 0 Fullscreen 2 Font 18/SmallcapsGlow Map View 76x50 Tactical HUD 1 Map Filters NONE Filters NONE Steam 1 RUN: dde2185c-bc2f-46bc-bf4c-84b342a1e71c